Cogmind - Beta 13 @@@ ROGUE MODE // 2024.04.06 @ 22:35:24 Player: f_ Result: Destroyed by G-67 Veteran with Field Laser Performance ------------- Evolutions (5) 2500 Regions Visited (15) 3000 Robots Destroyed (109) 545 Value Destroyed (2762) 2762 Prototype IDs (43) 860 Alien Tech Used (0) 0 Bonus (1419) 1419 TOTAL SCORE: 11086 Bonus ------- High Alert Combat Kills 38 Follower Combat Kills 224 Aligned with FarCom 300 Met Imprinter 300 Met Warlord at Base 500 MAIN.C Attacked Warlord 500 Friendly Fire -443 Cogmind --------- Core Integrity 0/1000 Matter 290/300 Energy 520/520 System Corruption 3% Temperature Cool (18) Movement Walking (120) Location -4/Proximity Caves Parts ------- > --- POWER (1) -------- Light Antimatter Reactor > --- PROPULSION (4) --- Carbon-fiber Leg Flexi-carbon Leg Flexi-carbon Leg Flexi-carbon Leg > --- UTILITY (10) ----- Advanced Heat Sink Energy Well Improved Target Analyzer Core Analyzer Core Analyzer Layered Light Armor Plating System Shield System Shield System Shield > --- WEAPON (2) ------- Heavy Beamcaster Powered Hammer > --- INVENTORY (5) ---- Relay Coupler [Programmer] (62) Relay Coupler [Programmer] (75) Hacking Drone Bay (1/1) Improved Remote Datajack Peak State ------------ > --- POWER ------------ Light Antimatter Reactor > --- PROPULSION ------- Carbon-fiber Leg Flexi-carbon Leg Flexi-carbon Leg Flexi-carbon Leg > --- UTILITY ---------- Advanced Heat Sink Energy Well Improved Target Analyzer Core Analyzer Core Analyzer Layered Light Armor Plating System Shield System Shield System Shield > --- WEAPON ----------- Heavy Beamcaster Powered Hammer > --- INVENTORY -------- Relay Coupler [Programmer] Relay Coupler [Programmer] Hacking Drone Bay Improved Remote Datajack [Rating: 73] Favorites ----------- Power Light Nuclear Core Engine Backup Power III Power Core Light Nuclear Core Reactor Light Antimatter Reactor Propulsion Wheel Leg Flexi-carbon Leg Wheel Wheel Hover Unit Backup Propulsion III Flight Unit Cesium-ion Thruster Utility System Shield Device Hacking Drone Bay Storage High-capacity Storage Unit Processor Signal Interpreter Hackware System Shield Protection Power Shielding Weapon Longsword +1 Energy Gun Backup Laser III Energy Cannon Advanced Beam Cannon Ballistic Gun Light Assault Rifle Launcher Rocket Launcher Special Weapon Improved Remote Datajack Impact Weapon Maul Slashing Weapon Longsword +1 Piercing Weapon Makeshift Spear Special Melee Weapon Improved Datajack Build | -11 -10 -10 -9 -9 -9 -8 -8 -7 -7 -6 -5 -5 -5 -5 -4 ------- Run | Yrd Mat Min Mat Min Exi Min Mat Fac Low Zio Pro Fac Upp War Pro Slots Evolved 10 | . . . 2 . . . 2 2 . . . 4 . . . Power . | . . . . . . . . . . . . . . . . Propulsion 2 | . . . . . . . . 2 . . . . . . . Utility 8 | . . . 2 . . . 2 . . . . 4 . . . Weapon . | . . . . . . . . . . . . . . . . Parts Attached 148 | 6 2 1 27 12 3 4 24 10 5 4 6 16 1 27 . Power 12 | 1 . . 3 1 . . 2 1 1 . 1 . . 2 . Engine 4 | 1 . . . . . . 2 . 1 . . . . . . Core 6 | . . . 3 1 . . . 1 . . 1 . . . . Reactor 2 | . . . . . . . . . . . . . . 2 . Propulsion 31 | 2 . . 4 5 1 . 4 4 2 . . 1 1 7 . Treads . | . . . . . . . . . . . . . . . . Leg 8 | . . . . . . . . . . . . . 1 7 . Wheel 15 | 2 . . 2 5 1 . 4 . . . . 1 . . . Hover . | . . . . . . . . . . . . . . . . Flight 8 | . . . 2 . . . . 4 2 . . . . . . Utility 56 | 1 2 1 11 4 1 3 7 3 . 4 1 9 . 9 . Device 17 | . 1 1 2 2 . 2 . . . 2 1 3 . 3 . Storage 10 | 1 1 . 3 . 1 . . 1 . 1 . 1 . 1 . Processor 12 | . . . 1 . . . 2 1 . 1 . 3 . 4 . Hackware 7 | . . . . . . . 4 1 . . . 2 . . . Protection 10 | . . . 5 2 . 1 1 . . . . . . 1 . Artifact . | . . . . . . . . . . . . . . . . Weapon 49 | 2 . . 9 2 1 1 11 2 2 . 4 6 . 9 . Energy Gun 11 | 1 . . 4 . . . 3 . . . . . . 3 . Energy Cannon 2 | . . . . . . . 1 . . . . . . 1 . Ballistic Gun 3 | 1 . . 1 . . . 1 . . . . . . . . Ballistic Cannon . | . . . . . . . . . . . . . . . . Launcher 12 | . . . 2 2 . 1 3 . . . 2 1 . 1 . Special Weapon 3 | . . . . . . . . . . . . 2 . 1 . Impact Weapon 10 | . . . 2 . . . 2 . 2 . 1 2 . 1 . Slashing Weapon 5 | . . . . . 1 . 1 1 . . 1 1 . . . Piercing Weapon 2 | . . . . . . . . . . . . . . 2 . Special Melee Weapon 1 | . . . . . . . . 1 . . . . . . . Unidentified Prototypes 12 | . . . 1 . . . 5 . . 2 . . . 4 . Parts Lost 38 | . . . 8 3 . . 7 . 2 . . 10 6 2 . Power 6 | . . . 1 1 . . 1 . 1 . . 1 . 1 . Propulsion 13 | . . . 3 1 . . 3 . 1 . . 5 . . . Utility 10 | . . . 2 . . . 1 . . . . 2 4 1 . Weapon 9 | . . . 2 1 . . 2 . . . . 2 2 . . Highest Loss Streak 7 | . . . 7 1 . . 2 . 2 . . 5 6 2 . To Critical Strikes . | . . . . . . . . . . . . . . . . Average Slot Usage (%) 86 | . 95 100 86 98 98 88 97 100 94 99 100 84 27 52 94 Engine 3 | . 14 14 3 . . . 5 . 5 7 1 . . 3 . Core 4 | . . . 7 11 11 11 3 7 1 . 5 5 . . . Wheel 10 | . 28 28 14 21 22 21 16 . . . . . . . . Hover 1 | . . . . . . . . . . . . . . 7 . Flight 6 | . . . 1 . . . . 30 27 30 30 15 . . . Device 4 | . 9 14 6 5 11 8 . . . 5 7 2 1 3 5 Storage 7 | . 14 14 11 11 11 11 9 7 7 5 7 4 . . 5 Processor 9 | . . . 11 11 11 11 10 7 7 8 7 21 2 6 17 Hackware 15 | . . . . . . . 32 29 30 24 23 25 19 17 17 Protection 4 | . . . 9 14 11 3 1 . . . . . . . 5 Energy Gun 3 | . 14 14 10 1 . . 5 . . . . . . 7 5 Launcher 2 | . . . 3 9 4 2 1 . . . 1 . . . . Impact Weapon 5 | . . . 5 11 11 8 2 7 4 7 6 1 1 . 5 Slashing Weapon 3 | . . . . . 5 11 8 7 7 7 5 4 1 . . Naked Turns . | . . . . . . . . . . . . . . . . Heaviest Build 69 | 13 29 29 64 69 54 65 62 16 16 17 20 20 7 30 30 Greatest Support 75 | 20 20 20 20 26 26 26 26 18 20 20 20 20 15 75 75 Greatest Overweight (x) 18 | 1 1 1 5 5 2 18 3 . 1 . . 4 2 1 . Average Overweight (x) . | . . 1 3 2 1 2 1 . . . . . . . . Largest Inventory Capacity 20 | 8 15 15 20 20 20 20 20 20 8 8 8 8 5 5 5 Average Capacity 13 | 7 12 15 18 20 20 20 20 8 8 7 8 7 5 5 5 Most Carried 20 | 1 4 8 16 20 20 20 20 18 8 8 8 8 5 5 4 Average Carried 12 | . 2 7 10 19 19 18 19 7 7 7 7 7 4 4 4 Final Capacity 20 | 8 15 15 20 20 20 20 20 8 8 8 8 5 5 5 5 Final Carried 20 | 1 4 8 14 20 20 20 19 8 8 8 8 4 5 4 4 Class Distribution -------------------- 37% | Mutant 32% | Hacker-Mutant 22% | Hacker-Sprinter 4% | Hacker-Gladiator Dominant Class ---------------- Mutant | -10/Materials Mutant | -10/Mines Mutant | -9/Materials Mutant | -9/Mines Mutant | -9/Exiles Mutant | -8/Mines Hacker-Mutant | -8/Materials Hacker-Sprinter | -7/Factory Hacker-Sprinter | -7/Lower Caves Hacker-Sprinter | -6/Zion Hacker-Sprinter | -5/Proximity Caves Hacker-Sprinter | -5/Factory Hacker-Mutant | -5/Upper Caves Hacker-Mutant | -5/Warlord Scavenger-Mutant | -4/Proximity Caves Resources | -11 -10 -10 -9 -9 -9 -8 -8 -7 -7 -6 -5 -5 -5 -5 -4 ----------- Run | Yrd Mat Min Mat Min Exi Min Mat Fac Low Zio Pro Fac Upp War Pro Matter Collected 2455 | 176 . 34 462 408 . 31 443 26 114 25 255 176 10 295 . Remotely . | . . . . . . . . . . . . . . . . Salvage Created 3302 | . 22 . 765 205 . 25 1107 26 243 . 349 508 52 . . Parts 189 | . 4 . 44 11 . 4 71 5 12 . 18 19 1 . . Haulers Intercepted 2 | . . . . . . . 1 . . . . 1 . . . Recyclers Shooed 3 | . . . 2 . . . 1 . . . . . . . . Parts Field Recycled . | . . . . . . . . . . . . . . . . Retrieved Matter . | . . . . . . . . . . . . . . . . Parts Self-Destructed 28 | . . . . . . . . . 14 . 13 . 1 . . Prevented . | . . . . . . . . . . . . . . . . Kills | -11 -10 -10 -9 -9 -9 -8 -8 -7 -7 -6 -5 -5 -5 -5 -4 ------- Run | Yrd Mat Min Mat Min Exi Min Mat Fac Low Zio Pro Fac Upp War Pro Combat Hostiles Destroyed 83 | . . . 19 16 . 4 23 . 6 . 13 1 1 . . Melee 20 | . . . . 2 . . 8 . 6 . 2 1 1 . . Guns 6 | . . . 5 . . . 1 . . . . . . . . AOE 49 | . . . 12 12 . 4 10 . . . 11 . . . . Classes Destroyed 14 | . 1 . 7 2 . . 1 . . . 2 1 . . . Worker 7 | . . . 3 3 . . 1 . . . . . . . . Builder 7 | . . . 4 2 . . 1 . . . . . . . . Tunneler 3 | . . . . 2 . . 1 . . . . . . . . Hauler 2 | . . . . . . . 1 . . . . 1 . . . Recycler 7 | . . . 3 . . . 2 . . . . 2 . . . Mechanic 1 | . . . 1 . . . . . . . . . . . . Operator 1 | . . . . . . . . . . . . 1 . . . Watcher 10 | . 1 . 2 . . . 4 1 . . . 2 . . . Swarmer 27 | . . . 9 . . 4 7 . 3 . 4 . . . . Grunt 30 | . . . 6 1 . . 13 . 2 . 6 1 1 . . Brawler 1 | . . . . . . . . . . . 1 . . . . Sentry 12 | . . . 4 . . . 6 . 1 . 1 . . . . Programmer 1 | . . . . . . . . . . . 1 . . . . Assembled 15 | . . . . 15 . . . . . . . . . . . Best Kill Streak 14 | . 1 . 9 5 . 4 14 1 4 . 7 2 1 . . Combat Bots Only 8 | . . . 7 3 . 4 8 . 4 . 7 1 1 . . Max Kills in Single Turn 4 | . 1 . 4 4 . 3 4 1 1 . 3 1 1 . . Gunslinging . | . . . . . . . . . . . . . . . . Exploded 3 | . . . 2 2 . 3 3 . . . 3 . . . . Melee 1 | . . . . 1 . . 1 . 1 . 1 1 1 . . Uniques/NPCs Destroyed . | . . . . . . . . . . . . . . . . Combat | -11 -10 -10 -9 -9 -9 -8 -8 -7 -7 -6 -5 -5 -5 -5 -4 -------- Run | Yrd Mat Min Mat Min Exi Min Mat Fac Low Zio Pro Fac Upp War Pro Hostile Shots Fired 363 | . . . 92 26 . 2 61 15 26 . 26 58 32 3 22 Missed 118 | . . . 21 5 . 2 20 8 10 . 14 20 9 . 9 Damage Taken 4753 | . . . 924 522 . . 658 49 171 . 264 988 455 464 258 Core 1701 | . . . 235 161 . . 161 22 51 . 56 544 227 211 33 Absorbed by Shields 145 | . . . . . . . . . . . . . . 145 . Redirected to Shielding 121 | . . . 51 70 . . . . . . . . . . . Ignored by Resistances 2 | . . . . . . . 2 . . . . . . . . Regen/Repaired (Parts) 212 | . . . . . . . 70 . . 142 . . . . . Core Remaining (%) 70 | 100 . 100 . . . 1 70 . . . 81 . . . . Volleys Fired 147 | . 1 . 79 18 . 4 19 . . . 16 6 . 3 1 Largest 2 | . 2 . 2 1 . 1 1 . . . 1 1 . 1 1 Hottest 90 | . 70 . 90 50 . 33 61 . . . 36 36 . 81 81 Shots Fired 165 | . 2 . 96 18 . 4 19 . . . 16 6 . 3 1 Gun 88 | . 2 . 73 1 . . 9 . . . . . . 2 1 Cannon . | . . . . . . . . . . . . . . . . Launcher 74 | . . . 23 17 . 4 10 . . . 16 4 . . . Special 3 | . . . . . . . . . . . . 2 . 1 . Kinetic 9 | . 1 . 8 . . . . . . . . . . . . Thermal 71 | . 1 . 65 1 . . 1 . . . . . . 2 1 Explosive 74 | . . . 23 17 . 4 10 . . . 16 4 . . . Electromagnetic 8 | . . . . . . . 8 . . . . . . . . Robot Hit Streak 21 | . 1 . 21 4 . 2 12 . . . 5 3 . 2 . Robot Miss Streak 4 | . . . 4 3 . . 3 . . . 1 . . 1 . Penetration Max . | . . . . . . . . . . . . . . . . Secondary Targets . | . . . . . . . . . . . . . . . . Shots Hit Robots 182 | . 1 . 68 12 . 2 41 2 8 . 18 19 8 3 . Core Hits 168 | . 1 . 46 28 . 4 46 1 2 . 27 10 2 1 . Critical Kills 1 | . . . . 1 . . . . . . . . . . . Critical Parts Destroyed 5 | . . . . 2 . . 3 . . . . . . . . Critical Strikes 21 | . . . 7 4 . . 5 . 2 . 1 1 1 . . Burn 8 | . . . 7 1 . . . . . . . . . . . Smash 6 | . . . . 3 . . 3 . . . . . . . . Sever 7 | . . . . . . . 2 . 2 . 1 1 1 . . Melee Attacks 145 | . . . 3 14 . . 59 5 10 . 7 34 8 1 4 Impact 42 | . . . 3 14 . . 17 3 . . . . . 1 4 Slashing 102 | . . . . . . . 42 1 10 . 7 34 8 . . Piercing . | . . . . . . . . . . . . . . . . Sneak Attacks 10 | . . . 3 1 . . . 2 1 . . 3 . . . Combat Hostiles 2 | . . . . . . . . 1 1 . . . . . . Follow-up Attacks 5 | . . . . . . . 5 . . . . . . . . Damage Inflicted 10597 | . 13 . 1856 1213 . 222 3005 114 449 . 1879 1455 304 87 . Guns 902 | . 13 . 641 12 . . 191 . . . . . . 45 . Cannons . | . . . . . . . . . . . . . . . . Explosions 5311 | . . . 974 821 . 222 1403 . . . 1572 319 . . . Melee 4384 | . . . 241 380 . . 1411 114 449 . 307 1136 304 42 . Ramming . | . . . . . . . . . . . . . . . . Kinetic 56 | . . . 56 . . . . . . . . . . . . Thermal 677 | . 13 . 585 12 . . 22 . . . . . . 45 . Explosive 5311 | . . . 974 821 . 222 1403 . . . 1572 319 . . . Electromagnetic 169 | . . . . . . . 169 . . . . . . . . Impact 1200 | . . . 241 380 . . 537 . . . . . . 42 . Slashing 3184 | . . . . . . . 874 114 449 . 307 1136 304 . . Piercing . | . . . . . . . . . . . . . . . . Highest Corruption 16 | . . . . . . . . . . . . . 16 16 3 Average Corruption 9 | . . . . . . . . . . . . . 15 7 3 Corruption Purged . | . . . . . . . . . . . . . . . . Corruption Blocked . | . . . . . . . . . . . . . . . . Effects 15 | . . . . . . . . . . . . . 8 4 3 Message Errors 2 | . . . . . . . . . . . . . 2 . . Matter Fused 3 | . . . . . . . . . . . . . 1 2 . Heat Flow Errors 3 | . . . . . . . . . . . . . 1 1 1 Energy Discharges 1 | . . . . . . . . . . . . . . . 1 Data Loss (major) 3 | . . . . . . . . . . . . . 1 1 1 Misdirections 3 | . . . . . . . . . . . . . 3 . . Overload Shots . | . . . . . . . . . . . . . . . . Overflow Damage 998 | . . . 150 200 . 17 233 . 114 . 5 261 . 18 . Projectiles . | . . . . . . . . . . . . . . . . Explosions 98 | . . . 3 27 . 17 46 . . . 5 . . . . Melee 900 | . . . 147 173 . . 187 . 114 . . 261 . 18 . Knockbacks 5 | . . . 2 1 . . 2 . . . . . . . . Impact 5 | . . . 2 1 . . 2 . . . . . . . . Kinetic . | . . . . . . . . . . . . . . . . Secondary . | . . . . . . . . . . . . . . . . Self-Inflicted Damage 359 | . . . 41 230 . . 41 . . . 47 . . . . Shots 12 | . . . 3 6 . . 1 . . . 2 . . . . Rammed . | . . . . . . . . . . . . . . . . Targets Rammed . | . . . . . . . . . . . . . . . . Kicked . | . . . . . . . . . . . . . . . . Crushed . | . . . . . . . . . . . . . . . . Highest Temperature 231 | . 30 . 231 18 . . 24 5 . . 9 5 212 114 207 Average Temperature 59 | . 18 . 66 11 . . 8 5 . . 3 5 112 59 107 Received Heat Transfer 1480 | . . . 357 220 . . 315 12 33 . 45 313 81 32 72 Siege Activations . | . . . . . . . . . . . . . . . . Robots Corrupted 1 | . . . . . . . 1 . . . . . . . . Combat Hostiles 1 | . . . . . . . 1 . . . . . . . . Parts Fried 15 | . . . 9 1 . . 5 . . . . . . . . Impact Corruptions 21 | . . . 6 7 . . 7 . . . . . . 1 . Robots Melted 2 | . . . 2 . . . . . . . . . . . . Combat Hostiles 2 | . . . 2 . . . . . . . . . . . . Parts Melted 6 | . . . 6 . . . . . . . . . . . . Heat Transferred 2377 | . 37 . 2136 111 . . 37 . . . . . . 56 . Parts Sabotaged . | . . . . . . . . . . . . . . . . Parts Stolen . | . . . . . . . . . . . . . . . . Parts Stripped . | . . . . . . . . . . . . . . . . Power Chain Reactions . | . . . . . . . . . . . . . . . . Alert | -11 -10 -10 -9 -9 -9 -8 -8 -7 -7 -6 -5 -5 -5 -5 -4 ------- Run | Yrd Mat Min Mat Min Exi Min Mat Fac Low Zio Pro Fac Upp War Pro Peak Influence 469 | . 22 8 469 192 . 134 440 198 . . . 226 . . . Initial 182 | . . 8 2 182 . . 52 49 . . . 72 . . . Average 132 | . 17 8 309 74 . 16 149 124 . . . 133 . . . Maximum Alert Level 2 | . . . 2 . . . 2 . . . . 1 . . . Low Security (%) 79 | 100 100 100 28 100 . 100 73 100 . . . 75 . . . Level 1 14 | . . . 36 . . . 24 . . . . 24 . . . Level 2 5 | . . . 34 . . . 2 . . . . . . . . Level 3 . | . . . . . . . . . . . . . . . . Level 4 . | . . . . . . . . . . . . . . . . Level 5 . | . . . . . . . . . . . . . . . . High Security . | . . . . . . . . . . . . . . . . Max Security . | . . . . . . . . . . . . . . . . Squads Dispatched 12 | . . . 3 1 . . 1 . . . . 7 . . . Investigation 5 | . . . 1 . . . 1 . . . . 3 . . . Extermination . | . . . . . . . . . . . . . . . . Reinforcement 7 | . . . 2 1 . . . . . . . 4 . . . Assault . | . . . . . . . . . . . . . . . . Garrison . | . . . . . . . . . . . . . . . . Intercept . | . . . . . . . . . . . . . . . . Searches Triggered . | . . . . . . . . . . . . . . . . Construction Impeded 3 | . . . 1 1 . . . . . . . 1 . . . Haulers Reinforced . | . . . . . . . . . . . . . . . . Active Scanning Responses . | . . . . . . . . . . . . . . . . Cargo Convoy Interrupts . | . . . . . . . . . . . . . . . . Stealth | -11 -10 -10 -9 -9 -9 -8 -8 -7 -7 -6 -5 -5 -5 -5 -4 --------- Run | Yrd Mat Min Mat Min Exi Min Mat Fac Low Zio Pro Fac Upp War Pro Distress Signals 7 | . . . 2 . . . 3 . . . . 2 . . . Communications Jammed . | . . . . . . . . . . . . . . . . Distress Signals . | . . . . . . . . . . . . . . . . Times Spotted 168 | . 1 . 27 14 . 3 35 4 5 . 14 15 9 36 5 Peak Tracking Total 10 | . 1 . 5 3 . 3 6 2 4 . 8 6 5 10 4 Tactical Retreats 11 | . . . . 2 . . 1 . . . 1 2 3 1 1 Traps | -11 -10 -10 -9 -9 -9 -8 -8 -7 -7 -6 -5 -5 -5 -5 -4 ------- Run | Yrd Mat Min Mat Min Exi Min Mat Fac Low Zio Pro Fac Upp War Pro Traps Triggered 6 | . . . 1 . . . 1 . . . . 2 . 2 . Indirectly . | . . . . . . . . . . . . . . . . Trap Hack Attempts . | . . . . . . . . . . . . . . . . Triggered . | . . . . . . . . . . . . . . . . Disarmed . | . . . . . . . . . . . . . . . . Reprogrammed . | . . . . . . . . . . . . . . . . Reused . | . . . . . . . . . . . . . . . . Traps Extracted . | . . . . . . . . . . . . . . . . Installed . | . . . . . . . . . . . . . . . . Triggered 5 | . . . . . . . . . . . . . . 5 . Machines | -11 -10 -10 -9 -9 -9 -8 -8 -7 -7 -6 -5 -5 -5 -5 -4 ---------- Run | Yrd Mat Min Mat Min Exi Min Mat Fac Low Zio Pro Fac Upp War Pro Machines Disabled 6 | . . . 3 1 . . 2 . . . . . . . . Max in Single Turn 1 | . . . 1 1 . . 1 . . . . . . . . Machines Repaired . | . . . . . . . . . . . . . . . . Machines Dismantled . | . . . . . . . . . . . . . . . . Machines Sabotaged . | . . . . . . . . . . . . . . . . Overloaded Fab Kills . | . . . . . . . . . . . . . . . . Hacking | -11 -10 -10 -9 -9 -9 -8 -8 -7 -7 -6 -5 -5 -5 -5 -4 --------- Run | Yrd Mat Min Mat Min Exi Min Mat Fac Low Zio Pro Fac Upp War Pro Machines Accessed 36 | . 1 1 1 1 2 . 9 8 1 . 1 7 . 4 . Terminals 23 | . 1 . 1 . . . 7 7 1 . 1 5 . . . Fabricators 1 | . . . . . . . . . . . . 1 . . . Repair Stations 1 | . . . . . . . 1 . . . . . . . . Recycling Units . | . . . . . . . . . . . . . . . . Scanalyzers 2 | . . . . . . . 1 . . . . 1 . . . Garrison Access 1 | . . . . . . . . 1 . . . . . . . Total Hacks 199 | . 4 1 5 1 22 . 69 30 5 . 1 48 . 13 . Successful 120 | . 1 1 1 1 22 . 40 9 5 . 1 26 . 13 . Failed 78 | . 3 . 4 . . . 28 21 . . . 22 . . . Catastrophic 19 | . . . . . . . 12 2 . . . 5 . . . Database Lockouts 1 | . . . . . . . 1 . . . . . . . . Manual 97 | . 4 . 5 . 1 . 53 13 . . . 20 . 1 . Terminals 129 | . 4 . 5 . . . 49 28 5 . 1 37 . . . Fabricators 4 | . . . . . . . . . . . . 4 . . . Repair Stations 2 | . . . . . . . 2 . . . . . . . . Recycling Units . | . . . . . . . . . . . . . . . . Scanalyzers 25 | . . . . . . . 18 . . . . 7 . . . Garrison Access 2 | . . . . . . . . 2 . . . . . . . Terminal Hacks 87 | . 1 1 1 1 22 . 19 6 5 . 1 17 . 13 . Record 42 | . . . . . 21 . 1 . 5 . 1 2 . 12 . Part Schematic 1 | . . . . . . . 1 . . . . . . . . Robot Analysis 9 | . 1 . . . . . 3 2 . . . 3 . . . Prototype ID Bank 3 | . . . . . . . 1 1 . . . 1 . . . Open Door 3 | . . 1 . 1 . . . . . . . . . 1 . Open DSF 1 | . . . . . . . . 1 . . . . . . . Level Access Points 2 | . . . . . . . 1 1 . . . . . . . Branch Access Points 3 | . . . . . . . 1 1 . . . 1 . . . Machine Index 1 | . . . . . . . . . . . . 1 . . . Terminal Index 1 | . . . . . . . 1 . . . . . . . . Fabricator Index 1 | . . . 1 . . . . . . . . . . . . Alert Level 6 | . . . . . . . 5 . . . . 1 . . . Unreport Threat 4 | . . . . . . . 3 . . . . 1 . . . Patrol Status 1 | . . . . . . . . . . . . 1 . . . Investigation Status 1 | . . . . . . . . . . . . 1 . . . Recall Investigation 2 | . . . . . . . . . . . . 2 . . . Recall Reinforcements 2 | . . . . . . . . . . . . 2 . . . Registered Components 2 | . . . . . . . 1 . . . . 1 . . . Zone Layout 1 | . . . . . . . 1 . . . . . . . . Derelict Proto ID Bank 1 | . . . . . 1 . . . . . . . . . . Fabricator Hacks . | . . . . . . . . . . . . . . . . Repair Station Hacks 2 | . . . . . . . 2 . . . . . . . . Scan Component 1 | . . . . . . . 1 . . . . . . . . Repair 1 | . . . . . . . 1 . . . . . . . . Recycling Unit Hacks . | . . . . . . . . . . . . . . . . Scanalyzer 23 | . . . . . . . 16 . . . . 7 . . . Insert Component 11 | . . . . . . . 8 . . . . 3 . . . Analyze 12 | . . . . . . . 8 . . . . 4 . . . Garrison Access Hacks . | . . . . . . . . . . . . . . . . Unauthorized Hacks 8 | . . . . . . . 3 3 . . . 2 . . . Terminals 7 | . . . . . . . 3 2 . . . 2 . . . Assimilate 2 | . . . . . . . 1 1 . . . . . . . Botnet 5 | . . . . . . . 2 1 . . . 2 . . . Fabricators . | . . . . . . . . . . . . . . . . Repair Stations . | . . . . . . . . . . . . . . . . Recycling Units . | . . . . . . . . . . . . . . . . Scanalyzers . | . . . . . . . . . . . . . . . . Garrison Access 1 | . . . . . . . . 1 . . . . . . . Reprogram 1 | . . . . . . . . 1 . . . . . . . Data Cores Recovered . | . . . . . . . . . . . . . . . . Used . | . . . . . . . . . . . . . . . . Hacking Detections 23 | . 1 . 1 . . . 9 6 1 . . 5 . . . Full Trace Events 3 | . . . 1 . . . . . . . . 2 . . . Feedback Events . | . . . . . . . . . . . . . . . . Feedback Blocked . | . . . . . . . . . . . . . . . . Robot Schematics Acquired . | . . . . . . . . . . . . . . . . Robots Built . | . . . . . . . . . . . . . . . . Authchips . | . . . . . . . . . . . . . . . . Time . | . . . . . . . . . . . . . . . . Total Robot Build Rating . | . . . . . . . . . . . . . . . . Part Schematics Acquired 12 | . . . . . . . 9 . . . . 3 . . . Parts Built . | . . . . . . . . . . . . . . . . Authchips . | . . . . . . . . . . . . . . . . Time . | . . . . . . . . . . . . . . . . Total Part Build Rating . | . . . . . . . . . . . . . . . . Parts Repaired 1 | . . . . . . . 1 . . . . . . . . Time 38 | . . . . . . . 38 . . . . . . . . Parts Recycled . | . . . . . . . . . . . . . . . . Recycled Matter . | . . . . . . . . . . . . . . . . Retrieved Matter . | . . . . . . . . . . . . . . . . Retrieved Components . | . . . . . . . . . . . . . . . . Parts Scanalyzed 11 | . . . . . . . 8 . . . . 3 . . . Part Schematics Acquired 11 | . . . . . . . 8 . . . . 3 . . . Parts Damaged . | . . . . . . . . . . . . . . . . Bothacking | -11 -10 -10 -9 -9 -9 -8 -8 -7 -7 -6 -5 -5 -5 -5 -4 ------------ Run | Yrd Mat Min Mat Min Exi Min Mat Fac Low Zio Pro Fac Upp War Pro Used RIF Installer . | . . . . . . . . . . . . . . . . Robots Hacked 2 | . . . . . . . . . . . . 2 . . . Non-combat 1 | . . . . . . . . . . . . 1 . . . Combat . | . . . . . . . . . . . . . . . . Robot Hacks Applied 1 | . . . . . . . . . . . . 1 . . . parse_system 1 | . . . . . . . . . . . . 1 . . . Manual 1 | . . . . . . . . . . . . 1 . . . Relay Couplers Released . | . . . . . . . . . . . . . . . . Fabnet Peak Effective % . | . . . . . . . . . . . . . . . . Robots Rewired 6 | . . . . . . . . 1 . . . . . 5 . Allies Hacked . | . . . . . . . . . . . . . . . . Hacks Repelled . | . . . . . . . . . . . . . . . . Allies | -11 -10 -10 -9 -9 -9 -8 -8 -7 -7 -6 -5 -5 -5 -5 -4 -------- Run | Yrd Mat Min Mat Min Exi Min Mat Fac Low Zio Pro Fac Upp War Pro Total Allies 13 | . . . . 4 . . 1 2 . . . 1 . 5 . Largest Group 5 | . . . . 3 3 3 4 2 1 . . 1 . 5 2 Highest-Rated Group 290 | . . . . 40 40 40 66 47 26 . . 85 . 290 127 Highest-Rated Ally 85 | . . . . 31 16 16 26 26 26 . . 85 . 65 65 Total Orders 37 | . . . 3 11 . 9 2 1 . . . 3 . 8 . STAY 2 | . . . . . . . 1 1 . . . . . . . FOLLOW 3 | . . . . . . 1 1 . . . . 1 . . . EXPLORE 24 | . . . 2 7 . 6 . . . . . 1 . 8 . RETURN 8 | . . . 1 4 . 2 . . . . . 1 . . . Ally Attacks 67 | . . . . 5 . 3 28 . . . . 3 . 28 . Total Damage 1743 | . . . . 41 . 17 258 . . . . 229 . 1198 . Kills 6 | . . . . . . . 2 . . . . . . 4 . Allies Corrupted . | . . . . . . . . . . . . . . . . Allies Melted . | . . . . . . . . . . . . . . . . Intel | -11 -10 -10 -9 -9 -9 -8 -8 -7 -7 -6 -5 -5 -5 -5 -4 ------- Run | Yrd Mat Min Mat Min Exi Min Mat Fac Low Zio Pro Fac Upp War Pro Robot Analysis Total 9 | . 1 . . . . . 3 2 . . . 3 . . . Derelict Logs Recovered 10 | . . 2 . 1 . . . . 2 1 2 . 2 . . Drone Launches 38 | . . . 2 6 . 5 . . . . . 1 . 24 . Drone Recoveries 25 | . . . 1 2 . . . . . . . 1 . 21 . Exploration | -11 -10 -10 -9 -9 -9 -8 -8 -7 -7 -6 -5 -5 -5 -5 -4 ------------- Run | Yrd Mat Min Mat Min Exi Min Mat Fac Low Zio Pro Fac Upp War Pro Turns Passed 8888 | 37 94 188 784 1605 347 295 1600 226 253 555 665 474 184 1508 73 Spaces Moved 10417 | 34 97 183 394 965 280 147 1079 629 742 1960 1642 858 261 1096 50 Core 487 | 1 . . . . . 1 . . . . . 14 251 220 . Treads . | . . . . . . . . . . . . . . . . Legs 183 | . . . . . . . . . . . . . 10 123 50 Wheels 3175 | 33 97 183 391 965 280 146 1079 . . . . 1 . . . Hover 753 | . . . . . . . . . . . . . . 753 . Flight 5819 | . . . 3 . . . . 629 742 1960 1642 843 . . . Fastest Speed 27 | 50 80 95 37 110 105 120 105 28 27 27 27 27 50 50 120 Average Speed 61 | 79 89 95 126 120 118 125 114 28 28 27 27 34 60 76 120 Slowest Speed 950 | 95 95 95 155 155 120 950 145 28 110 27 27 355 150 160 120 Overloaded Moves . | . . . . . . . . . . . . . . . . Propulsion Burnouts . | . . . . . . . . . . . . . . . . Robots Hopped 3 | . . . . . . . . 3 . . . . . . . Cave-ins Triggered . | . . . . . . . . . . . . . . . . Exploration Rate (%) 52 | 3 21 38 47 99 61 76 75 13 72 87 96 17 35 95 4 Regions Visited 15 Branch Regions 10 Pre-discovered Areas 6 | . . 1 . . 1 . . . 1 3 . . . . . Known Exits Taken 9 | . . . 1 1 1 1 1 1 . 1 1 1 . . . Unknown Exits Taken 6 | 1 1 1 . . . . . . 1 . . . 1 1 . Scrap Searched 14 | . . 1 . 2 . . . . 4 3 4 . . . . Spaces Dug 61 | . . . . 16 . . 24 2 1 . . 16 . . 2 Terrain Destroyed 669 | . . . 153 190 . 40 99 2 1 . 160 22 . . 2 Melee 45 | . . . . . . . 24 2 1 . . 16 . . 2 Projectile . | . . . . . . . . . . . . . . . . AOE 624 | . . . 153 190 . 40 75 . . . 160 6 . . . Terrain Rammed . | . . . . . . . . . . . . . . . . Walls Destroyed . | . . . . . . . . . . . . . . . . Machines Disabled . | . . . . . . . . . . . . . . . . Actions | -11 -10 -10 -9 -9 -9 -8 -8 -7 -7 -6 -5 -5 -5 -5 -4 --------- Run | Yrd Mat Min Mat Min Exi Min Mat Fac Low Zio Pro Fac Upp War Pro Total 12552 | 40 101 197 579 1366 297 263 1355 674 769 1989 1835 997 278 1757 55 Wait 1484 | . . 10 40 336 8 103 144 11 9 6 159 69 7 582 . Move 10397 | 33 96 182 393 964 279 146 1078 623 741 1959 1641 857 260 1095 50 Hop 2 | . . . . . . . . 2 . . . . . . . Pick Up 90 | 1 2 3 23 12 3 1 20 8 1 7 3 5 . 1 . Fast Attach 51 | 6 1 . 3 1 . . 6 . 2 4 . 6 1 21 . Attach 55 | . . 1 15 6 1 3 10 7 2 . . 10 . . . Detach 21 | . . 1 5 3 . 2 2 . 1 1 . 5 1 . . Swap 43 | . 1 . 9 5 2 1 9 3 1 . 6 . . 6 . Drop 96 | . . . 9 7 4 3 17 15 2 12 3 5 1 18 . Fire 147 | . 1 . 79 18 . 4 19 . . . 16 6 . 3 1 Melee 136 | . . . 3 14 . . 50 5 10 . 7 34 8 1 4 Ram . | . . . . . . . . . . . . . . . . Kick . | . . . . . . . . . . . . . . . . Crush . | . . . . . . . . . . . . . . . . Escape Stasis . | . . . . . . . . . . . . . . . . Rewire 30 | . . . . . . . . . . . . . . 30 . Trap . | . . . . . . . . . . . . . . . . Miscellaneous . | . . . . . . . . . . . . . . . . Route ------- -11/Scrapyard -10/Materials -10/Mines -9/Materials (discovered 4 exits: *Mat / *Min x2 / *Sto) -9/Mines (discovered 3 exits: *Mat x2 / *Exi) -9/Exiles -8/Mines -8/Materials (discovered 3 exits: *Fac x3) -7/Factory (discovered 6 exits: Fac x4 / *Low x2) -7/Lower Caves -6/Zion -5/Proximity Caves -5/Factory (discovered 8 exits: *Fac x4 / *Upp x2 / Ext x2) -5/Upper Caves -5/Warlord -4/Proximity Caves (discovered 1 exit: Fac) History --------- Turn | Location | Event 21 | -11/Scrapyard | Discovered new exit (range 16) 38 | -11/Scrapyard | Entered Materials 52 | -10/Materials | Discovered new exit (range 16) 132 | -10/Materials | Entered Mines 141 | -10/Mines | Found the Drone Emporium 145 | -10/Mines | Learned location of 1 exit from Materials 147 | -10/Mines | Found Prototype Device 223 | -10/Mines | Discovered new exit (range 9) 239 | -10/Mines | Learned location of Zion (-6) 302 | -10/Mines | Build established: Mutant 320 | -10/Mines | Entered Materials 320 | -9/Materials | Evolved 2 slots: Utility x2 321 | -9/Materials | Identified exit to Storage 327 | -9/Materials | Identified Decoy Drone Bay 339 | -9/Materials | Discovered new exit (range 29) 361 | -9/Materials | Discovered new exit (range 42) 530 | -9/Materials | Identified exit to Mines 795 | -9/Materials | Discovered new exit (range 10) 855 | -9/Materials | Destroyed 7 combat bots 874 | -9/Materials | Core integrity fell below 50% 896 | -9/Materials | Lost 7 parts (1p2n2u2w) 1104 | -9/Materials | Entered Mines 1125 | -9/Mines | Discovered new exit (range 9) 1135 | -9/Mines | Received a Mining Laser from a helpful Derelict 1201 | -9/Mines | Identified exit to Materials 1227 | -9/Mines | Assembled infested the area 1251 | -9/Mines | Met a Derelict who couldn't figure out how to use a Trap Extractor 1594 | -9/Mines | Received a Rocket Launcher from a helpful Derelict 1692 | -9/Mines | Learned Materials emergency access door positions 1705 | -9/Mines | Core integrity fell below 20% 2074 | -9/Mines | Discovered exit to Materials (range 14) 2649 | -9/Mines | Assisted by bots powering up and referring to "LRC-V3" 2693 | -9/Mines | Deemed a non-threat by the Exiles lab entrance 2693 | -9/Mines | Discovered new exit (range 5) 2698 | -9/Mines | Identified exit to Exiles 2709 | -9/Mines | Entered Exiles 2709 | -9/Exiles | Accompanied by 3 allies 2739 | -9/Exiles | Met 8R-AWN 2757 | -9/Exiles | Met EX-HEX 2798 | -9/Exiles | Met EX-BIN 2813 | -9/Exiles | Aligned with FarCom system 2814 | -9/Exiles | Given EX-Vault access code 2841 | -9/Exiles | Opened EX-Vault 2853 | -9/Exiles | Found Longsword +1 2883 | -9/Exiles | Warned to stay clear of 0b10 Research branches 2953 | -9/Exiles | Met EX-DEC 3035 | -9/Exiles | Discovered new exit (range 15) 3051 | -9/Exiles | Identified exit to Mines 3056 | -9/Exiles | Left Exiles lab with Longsword +1 3056 | -9/Exiles | Entered Mines 3056 | -8/Mines | Accompanied by 3 allies 3276 | -8/Mines | Discovered exit to Materials (range 26) 3351 | -8/Mines | Entered Materials 3351 | -8/Materials | Accompanied by 3 allies 3351 | -8/Materials | Evolved 2 slots: Utility x2 3644 | -8/Materials | Identified exit to Factory 3650 | -8/Materials | Build established: Hacker-Mutant 4040 | -8/Materials | Destroyed 8 combat bots 4041 | -8/Materials | Lost 3 allies 4421 | -8/Materials | Central database locked down 4941 | -8/Materials | Repaired Missile Launcher 4951 | -8/Materials | Entered Factory 4951 | -7/Factory | Evolved 2 slots: Propulsion x2 5070 | -7/Factory | Identified exit to Lower Caves 5091 | -7/Factory | Identified exit to Factory 5177 | -7/Factory | Entered Lower Caves 5177 | -7/Lower Caves | Accompanied by 1 ally 5202 | -7/Lower Caves | Learned location of Extension (-5) 5235 | -7/Lower Caves | Attracted the attention of an 0b10 checkpoint 5372 | -7/Lower Caves | A Derelict revealed a hidden shortcut to a safe place 5396 | -7/Lower Caves | Learned Armory stockpile data 5396 | -7/Lower Caves | Learned Armory terminal intel 5396 | -7/Lower Caves | Learned Research garrison access intel 5396 | -7/Lower Caves | Learned Extension garrison access intel 5430 | -7/Lower Caves | Entered Zion 5435 | -6/Zion | Found CR-A16's Pointy Stick 5446 | -6/Zion | Discovered new exit (range 13) 5458 | -6/Zion | Visited the Megawrench Repair Shop 5458 | -6/Zion | Megawrench repaired 9 parts 5532 | -6/Zion | Build established: Hacker-Sprinter 5534 | -6/Zion | Learned Factory recycling unit intel 5550 | -6/Zion | Found Prototype Device 5550 | -6/Zion | Identified Bomb Factory No. 2 5568 | -6/Zion | Given the Hacking Drone Bay 5568 | -6/Zion | Found Prototype Device 5568 | -6/Zion | Identified Hacking Drone Bay 5618 | -6/Zion | Identified exit to Proximity Caves 5700 | -6/Zion | Learned location of Quarantine (-2) 5706 | -6/Zion | Given A8's code to call for help 5776 | -6/Zion | Found Relay Coupler [Programmer] 5778 | -6/Zion | Found Relay Coupler [Programmer] 5806 | -6/Zion | Rebuked by Imprinter 5985 | -6/Zion | Entered Proximity Caves 5986 | -5/Proximity Caves | Identified exit to Factory 6180 | -5/Proximity Caves | Destroyed 7 combat bots 6300 | -5/Proximity Caves | Learned Factory stockpile data 6356 | -5/Proximity Caves | Learned Factory stockpile data 6490 | -5/Proximity Caves | Attracted the attention of an 0b10 checkpoint 6637 | -5/Proximity Caves | Received a Behemoth hack from an annoying Tinkerer 6650 | -5/Proximity Caves | Entered Factory 6650 | -5/Factory | Evolved 4 slots: Utility x4 6651 | -5/Factory | Identified exit to Factory 6651 | -5/Factory | Identified exit to Upper Caves 6653 | -5/Factory | Loaded intel: 6 recycling unit locations 6922 | -5/Factory | Identified exit to Extension 7033 | -5/Factory | Spotted B-75 Beast 7033 | -5/Factory | Befriended a Behemoth using the annoying Tinkerer's hack 7096 | -5/Factory | Lost 5 parts (2n1u2w) 7115 | -5/Factory | Core integrity fell below 50% 7124 | -5/Factory | Entered Upper Caves 7153 | -5/Upper Caves | Lost 4 parts (1p2n1u) 7169 | -5/Upper Caves | System corruption reached 10% 7186 | -5/Upper Caves | Learned location of 1 exit from Proximity Caves 7209 | -5/Upper Caves | Lost 6 parts (4u2w) 7289 | -5/Upper Caves | A Derelict revealed a hidden shortcut to "reach the base" 7308 | -5/Upper Caves | Entered Warlord 7324 | -5/Warlord | Core integrity fell below 20% 7337 | -5/Warlord | Discovered new exit (range 14) 7363 | -5/Warlord | System corruption cleaned by Quarantine Array 7419 | -5/Warlord | Found Prototype Device 7419 | -5/Warlord | Identified Minesniffer Drone Bay 7459 | -5/Warlord | Build established: Hacker-Mutant 8259 | -5/Warlord | Warlord's base attacked by MAIN.C 8294 | -5/Warlord | Found Prototype Energy Cannon 8294 | -5/Warlord | Identified Vortex Driver 8297 | -5/Warlord | Found Prototype Energy Gun 8297 | -5/Warlord | Identified Vortex Rail 8302 | -5/Warlord | Found Prototype Launcher 8302 | -5/Warlord | Identified Vortex Catalyst Activator 8512 | -5/Warlord | Met Warlord 8609 | -5/Warlord | Warlord forces counterattacked 8706 | -5/Warlord | Spotted Striker 8747 | -5/Warlord | Lost 9 allies 8785 | -5/Warlord | Spotted Executioner 8786 | -5/Warlord | Spotted Striker 8810 | -5/Warlord | P-80 Master assimilated allied D9-YM7(g) 8816 | -5/Warlord | Entered Proximity Caves 8816 | -4/Proximity Caves | Accompanied by 2 allies 8845 | -4/Proximity Caves | Lost 19 allies 8889 | -4/Proximity Caves | Destroyed by G-67 Veteran with Field Laser Last Messages --------------- 08802_ B-74 Champion destroyed. 08802_ 5N-UGI(g) destroyed. 08803_ The unstable cave ceiling collapses. 08803_ Slug penetrates D9-YM7(g). 08804_ Slug penetrates D-63 Destroyer. 08805_ Hvy. Rocket intercepted. 08809_ Archangel 6c destroyed. 08810_ P-80 Master hacks D9-YM7(g), assimilated. 08810_ Striker destroyed. [Achievement: Charge!!!] LOCATION=UNKNOWN GOAL=ESCAPE Loading 1 Proximity Caves exit... 08827_ System corrupted: Heat flow error (+245). 08868_ System corrupted: Energy discharge (-109). 08874_ The unstable cave ceiling collapses. 08883_ System corrupted: Substantial component data lost. [Achievement: I Think I Know What's Going On] Map ----- +----------------------------------------------------+ | ?????????????????????????????????????????????????? | | ?????????????????????????????????????????????????? | | ?????????????????????????????????????????????????? | | ?????????????????????????????????????????????????? | | ?????????????????????????????????????????????????? | | ?????????????????????????????????????????????????? | | ?????????????????????????????????????????????????? | | ?????????????????????????????????????????????????? | | ?????????????????????????????????????????????????? | | ?????????????????????????????????????????????????? | | ?????????????????????????????????????????????????? | | ???????????????????????#######???????????????????? | | ??????????????????????## ##??????????????????? | | ?????????????????????## # #??????????????????? | | ?????????????????????# !% # #??????????????????? | | ??????????????######## % ## #??????????????????? | | ??????????????# # ####??????????????????? | | ??????????????# ## #"#??????????????????? | | ??????????????## # ##??????????????????? | | ???????????????# g## #??????????????????? | | ???????????????# ### #??????????????????? | | ???????????????# # #g### #??????????????????? | | ???????????????#### #####??????????????????? | | ??????????????????# ## # #??????????????????????? | | ??????????????????# ##### #??????????????????????? | | ??????????????????# #???#@#??????????????????????? | | ??????????????????# ##### ##?????????????????????? | | ??????????????????# #?????????????????????? | | ??????????????????### #### #?????????????????????? | | ????????????????????# #??? #?????????????????????? | | ????????????????????# #??? #?????????????????????? | | ????????????????????# #??? #?????????????????????? | | ????????????????????# ??? #?????????????????????? | | ???????????????????? ??? ?????????????????????? | | ???????????????????? ??? ?????????????????????? | | ???????????????????? ???# ?????????????????????? | | ???????????????????? ##???? ?????????????????????? | | ???????????????????? ?????? ?????????????????????? | | ???????????????????? ??????# ????????????????????? | | ???????????????????? ???????#????????????????????? | | ???????????????????? ????????????????????????????? | | ???????????????????? ????????????????????????????? | | ???????????????????? ????????????????????????????? | | ?????????????????????????????????????????????????? | | ?????????????????????????????????????????????????? | | ?????????????????????????????????????????????????? | | ?????????????????????????????????????????????????? | | ?????????????????????????????????????????????????? | | ?????????????????????????????????????????????????? | | ?????????????????????????????????????????????????? | +----------------------------------------------------+ Best States ------------- Heat Dissipation 59 Energy Generation 21 Energy Capacity 520 Matter Stores 300 Matter Capacity 300 Sight Range 16 Robot Scan Range 14 Terrain Scan Range 16 Terrain Scan Density 10 Power Amplification 20 Armor Coverage 150 Resistance: TH 10 Power Shielding 33 Propulsion Shielding 33 Weapon Shielding 33 Phase Shifting 10 Evasion (%) 64 Melee Accuracy 24 Target Analysis 6 Core Analysis 9 Offensive Hacking 20 Defensive Hacking 40 Item Schematics ----------------- Lgt. Armored Exoskeleton | -8/Materials | Scanalyzed Flight Unit | -8/Materials | Scanalyzed Maul | -8/Materials | Scanalyzed Rocket Launcher | -8/Materials | Scanalyzed Imp. Light Armor Plating | -8/Materials | Scanalyzed Lgt. Ion Engine | -8/Materials | Scanalyzed Cooling System | -8/Materials | Scanalyzed Sml. Storage Unit | -8/Materials | Scanalyzed Surge Thruster | -8/Materials | Hacked Mak. Hammer | -5/Factory | Scanalyzed Missile Launcher | -5/Factory | Scanalyzed Imp. Remote Datajack | -5/Factory | Scanalyzed Robot Schematics ------------------ None Fabricated ------------ Nothing Alien Tech Used ----------------- None Achievements -------------- A Powerful Ally? Charge!!! Exterminator I Think I Know What's Going On Challenges ------------ None Game ------ Seed ZhirovMakeshiftMagmablaster Manual? 0 Play Time 03:01:03 Cumulative 158.2 hours Start 2024.04.06 @ 18:46:42 End 2024.04.06 @ 22:35:24 Sessions 1 Manual Loads 0 Difficulty Rogue Special Mode None Game No. 124 Rogue 119 Adventurer 0 Explorer 5 Win Type - Total 4 Types 1/0/1/2/0/0/0/0/0 Lore% 50 Gallery% 60 Achievement% 46 Wizard Run 0 Options --------- Layout 1 ASCII 0 Keyboard 0 Movement Mouse Keybinds 0 Fullscreen 2 Font 24/Tamsyn Map View 50x35 Zoom Use 0% Tactical HUD 1 Map Filters NONE Filters NONE Steam 1 RUN: cb27a218-ffa6-40c7-a3de-38a59103113c